[Event "*** Titled Tuesday 3|2 Blitz"]
[Site "Chess.com"]
[Date "2016.05.03"]
[Round "1"]
[White "bugsbunny444"]
[Black "Badouuu"]
[Result "0-1"]
[WhiteElo "2372"]
[BlackElo "2010"]
[TimeControl "180+2"]
[EndTime "11:07:38 PDT"]
[Termination "Badouuu won on time"]

1. Nf3 {[%clk 0:03:01.9]} 1... Nf6 {[%clk 0:02:49.2]} 2. c4 {[%clk 0:03:02.6]}
2... e6 {[%clk 0:02:49.3]} 3. g3 {[%clk 0:03:03.1]} 3... c5 {[%clk 0:02:50.7]}
4. Bg2 {[%clk 0:03:02.6]} 4... Nc6 {[%clk 0:02:50.7]} 5. O-O {[%clk 0:03:03]}
5... d5 {[%clk 0:02:50.8]} 6. e3 {[%clk 0:03:03.5]} 6... Be7 {[%clk 0:02:48.6]}
7. b3 {[%clk 0:03:04.1]} 7... O-O {[%clk 0:02:49.2]} 8. Bb2 {[%clk 0:03:04.9]}
8... Ne4 {[%clk 0:02:50.1]} 9. d3 {[%clk 0:02:51.4]} 9... Nd6 {[%clk 0:02:40.6]}
10. cxd5 {[%clk 0:02:31.7]} 10... exd5 {[%clk 0:02:41.3]} 11. d4 {[%clk
0:02:33]} 11... Bf6 {[%clk 0:02:40.8]} 12. Nc3 {[%clk 0:02:10.6]} 12... Ne4
{[%clk 0:02:39.7]} 13. Rc1 {[%clk 0:01:54.9]} 13... cxd4 {[%clk 0:02:35.5]} 14.
Nxd4 {[%clk 0:01:38.5]} 14... Nxd4 {[%clk 0:02:36]} 15. exd4 {[%clk 0:01:03.5]}
15... Bf5 {[%clk 0:02:30.2]} 16. Re1 {[%clk 0:00:51.9]} 16... Re8 {[%clk
0:02:03.3]} 17. Nxe4 {[%clk 0:00:26.8]} 17... Bxe4 {[%clk 0:02:03.3]} 18. Bxe4
{[%clk 0:00:21.9]} 18... dxe4 {[%clk 0:01:57.2]} 19. Qg4 {[%clk 0:00:14.6]}
19... Bg5 {[%clk 0:01:39.4]} 20. Rcd1 {[%clk 0:00:13.1]} 20... e3 {[%clk
0:01:39.4]} 21. f4 {[%clk 0:00:11]} 21... Bf6 {[%clk 0:01:37.7]} 22. Qf3 {[%clk
0:00:12]} 22... Qe7 {[%clk 0:01:31.1]} 23. Re2 {[%clk 0:00:09.2]} 23... Rad8
{[%clk 0:01:29.1]} 24. Rd3 {[%clk 0:00:08.2]} 24... Qb4 {[%clk 0:01:22.6]} 25.
Rdxe3 {[%clk 0:00:07]} 25... Bxd4 {[%clk 0:01:23.5]} 26. Bxd4 {[%clk 0:00:04]}
26... Qxd4 {[%clk 0:01:25.4]} 27. Kg2 {[%clk 0:00:04.2]} 27... Rxe3 {[%clk
0:01:24.8]} 28. Rxe3 {[%clk 0:00:05.4]} 28... h6 {[%clk 0:01:22.6]} 29. Re2
{[%clk 0:00:06.1]} 29... b6 {[%clk 0:01:08.5]} 30. h4 {[%clk 0:00:06.7]} 30...
a5 {[%clk 0:01:05.5]} 31. a4 {[%clk 0:00:06.3]} 31... Qd1 {[%clk 0:01:00.7]} 32.
Re8+ {[%clk 0:00:06.7]} 32... Kh7 {[%clk 0:01:01.5]} 0-1

[Event "*** Titled Tuesday 3|2 Blitz"]
[Site "Chess.com"]
[Date "2016.05.03"]
[Round "1"]
[White "A-Fier"]
[Black "YuriyKrykun"]
[Result "1/2-1/2"]
[WhiteElo "2587"]
[BlackElo "2306"]
[TimeControl "180+2"]
[EndTime "11:07:42 PDT"]
[Termination "Game drawn - insufficient material"]

1. e4 {[%clk 0:02:55.8]} 1... c5 {[%clk 0:03:00.4]} 2. Nf3 {[%clk 0:02:56.6]}
2... Nc6 {[%clk 0:03:01.3]} 3. d4 {[%clk 0:02:57.9]} 3... cxd4 {[%clk 0:03:02]}
4. Nxd4 {[%clk 0:02:59.8]} 4... e5 {[%clk 0:03:03.4]} 5. Nb5 {[%clk 0:03:00.7]}
5... a6 {[%clk 0:03:04.4]} 6. Nd6+ {[%clk 0:03:01.1]} 6... Bxd6 {[%clk
0:03:05.4]} 7. Qxd6 {[%clk 0:03:03]} 7... Qe7 {[%clk 0:03:06.9]} 8. Qxe7+ {[%clk
0:03:03.5]} 8... Ngxe7 {[%clk 0:03:08.8]} 9. Nc3 {[%clk 0:03:04]} 9... d5 {[%clk
0:03:10.1]} 10. Nxd5 {[%clk 0:03:01.5]} 10... Nxd5 {[%clk 0:03:10.7]} 11. exd5
{[%clk 0:03:02.9]} 11... Nb4 {[%clk 0:03:12.2]} 12. Kd2 {[%clk 0:03:03.8]} 12...
Nxd5 {[%clk 0:03:12.5]} 13. Bc4 {[%clk 0:03:01.8]} 13... Be6 {[%clk 0:03:13.7]}
14. Bb3 {[%clk 0:02:47.9]} 14... O-O-O {[%clk 0:03:14.2]} 15. Ke2 {[%clk
0:02:49.1]} 15... f6 {[%clk 0:03:13.9]} 16. Bd2 {[%clk 0:02:49.1]} 16... Nc7
{[%clk 0:03:04.2]} 17. c3 {[%clk 0:02:44.1]} 17... Bxb3 {[%clk 0:03:04.5]} 18.
axb3 {[%clk 0:02:46]} 18... Ne6 {[%clk 0:03:05.3]} 19. Be3 {[%clk 0:02:47.7]}
19... Rd7 {[%clk 0:03:03.5]} 20. g3 {[%clk 0:02:48.7]} 20... Rhd8 {[%clk
0:03:03.6]} 21. Ra4 {[%clk 0:02:48.7]} 21... h5 {[%clk 0:03:03.5]} 22. Rha1
{[%clk 0:02:49.4]} 22... Rd5 {[%clk 0:03:02.3]} 23. b4 {[%clk 0:02:50.6]} 23...
h4 {[%clk 0:02:49.3]} 24. Ra5 {[%clk 0:02:35.6]} 24... Rxa5 {[%clk 0:02:48.8]}
25. Rxa5 {[%clk 0:02:36.6]} 25... hxg3 {[%clk 0:02:50]} 26. hxg3 {[%clk
0:02:37.3]} 26... Kc7 {[%clk 0:02:42.1]} 27. b5 {[%clk 0:02:38]} 27... axb5
{[%clk 0:02:38.9]} 28. Rxb5 {[%clk 0:02:39.6]} 28... Rd6 {[%clk 0:02:37.9]} 29.
Ra5 {[%clk 0:02:38.5]} 29... Ra6 {[%clk 0:02:22.2]} 30. Rb5 {[%clk 0:02:35.2]}
30... Rd6 {[%clk 0:02:19.1]} 31. Kf3 {[%clk 0:02:35.7]} 31... Ra6 {[%clk
0:01:29]} 32. Ke4 {[%clk 0:02:31.5]} 32... Kc6 {[%clk 0:01:30]} 33. Rb4 {[%clk
0:02:30.7]} 33... b5 {[%clk 0:01:31.1]} 34. Kf5 {[%clk 0:02:30.8]} 34... Nc7
{[%clk 0:01:28.6]} 35. Kg6 {[%clk 0:02:30.6]} 35... Nd5 {[%clk 0:01:27.8]} 36.
Re4 {[%clk 0:02:28.2]} 36... Nxe3 {[%clk 0:01:26.4]} 37. Rxe3 {[%clk 0:02:29.4]}
37... Ra2 {[%clk 0:01:27.3]} 38. Re2 {[%clk 0:02:29.7]} 38... Ra7 {[%clk
0:01:27.7]} 39. f4 {[%clk 0:02:21.1]} 39... exf4 {[%clk 0:01:27.7]} 40. gxf4
{[%clk 0:02:23]} 40... Kc5 {[%clk 0:01:28.1]} 41. Re4 {[%clk 0:02:24.2]} 41...
Rd7 {[%clk 0:01:18.8]} 42. f5 {[%clk 0:02:22]} 42... Ra7 {[%clk 0:00:57.8]} 43.
Re8 {[%clk 0:02:22.4]} 43... Kc4 {[%clk 0:00:58.3]} 44. Rg8 {[%clk 0:02:21.1]}
44... Kb3 {[%clk 0:00:55]} 45. Rxg7 {[%clk 0:02:22.4]} 45... Rxg7+ {[%clk
0:00:55.4]} 46. Kxg7 {[%clk 0:02:23.5]} 46... Kxb2 {[%clk 0:00:57.3]} 47. Kxf6
{[%clk 0:02:23.6]} 47... Kxc3 {[%clk 0:00:58.6]} 48. Ke5 {[%clk 0:02:24.9]}
48... b4 {[%clk 0:01:00]} 49. f6 {[%clk 0:02:26.5]} 49... b3 {[%clk 0:01:01.5]}
50. f7 {[%clk 0:02:28.1]} 50... b2 {[%clk 0:01:03.2]} 51. f8=Q {[%clk
0:02:29.7]} 51... b1=Q {[%clk 0:01:04.4]} 52. Qc8+ {[%clk 0:02:31]} 52... Kb2
{[%clk 0:01:04.8]} 53. Qb7+ {[%clk 0:02:30.4]} 53... Kc1 {[%clk 0:01:05.6]} 54.
Qc6+ {[%clk 0:02:31.4]} 54... Qc2 {[%clk 0:01:06.7]} 55. Qa6 {[%clk 0:02:32.5]}
55... Qc3+ {[%clk 0:01:06.5]} 56. Ke4 {[%clk 0:02:33.6]} 56... Qc2+ {[%clk
0:01:07.9]} 57. Kd4 {[%clk 0:02:33.8]} 57... Qd2+ {[%clk 0:01:08.7]} 58. Ke4
{[%clk 0:02:34.3]} 58... Qc2+ {[%clk 0:01:09.8]} 59. Ke3 {[%clk 0:02:35.8]}
59... Qd2+ {[%clk 0:01:11.2]} 60. Kf3 {[%clk 0:02:37.3]} 60... Qd1+ {[%clk
0:01:12.3]} 61. Qe2 {[%clk 0:02:36.4]} 61... Qxe2+ {[%clk 0:01:13]} 62. Kxe2
{[%clk 0:02:38.3]} 1/2-1/2

[Event "*** Titled Tuesday 3|2 Blitz"]
[Site "Chess.com"]
[Date "2016.05.03"]
[Round "1"]
[White "vinceyoung15"]
[Black "Rikikits"]
[Result "0-1"]
[WhiteElo "2146"]
[BlackElo "2509"]
[TimeControl "180+2"]
[EndTime "11:07:42 PDT"]
[Termination "Rikikits won by resignation"]

1. e4 {[%clk 0:03:00.6]} 1... c5 {[%clk 0:03:00.5]} 2. Nf3 {[%clk 0:03:00.2]}
2... e6 {[%clk 0:03:01.3]} 3. c3 {[%clk 0:03:00.8]} 3... Nf6 {[%clk 0:03:01.8]}
4. e5 {[%clk 0:03:01.8]} 4... Nd5 {[%clk 0:03:03.2]} 5. d4 {[%clk 0:03:03.5]}
5... cxd4 {[%clk 0:03:03.9]} 6. cxd4 {[%clk 0:03:04.3]} 6... d6 {[%clk
0:03:05.3]} 7. Nc3 {[%clk 0:03:02.1]} 7... Bd7 {[%clk 0:03:05.7]} 8. Bd3 {[%clk
0:03:02.3]} 8... Bc6 {[%clk 0:03:05.9]} 9. O-O {[%clk 0:03:02.5]} 9... Nd7
{[%clk 0:03:07.1]} 10. Re1 {[%clk 0:03:00.2]} 10... dxe5 {[%clk 0:03:06]} 11.
Nxe5 {[%clk 0:03:00.5]} 11... Nxe5 {[%clk 0:03:06.8]} 12. dxe5 {[%clk
0:02:57.9]} 12... Be7 {[%clk 0:03:06.2]} 13. Qe2 {[%clk 0:02:37.3]} 13... Nxc3
{[%clk 0:03:02.7]} 14. bxc3 {[%clk 0:02:36.8]} 14... O-O {[%clk 0:03:04.3]} 15.
Bf4 {[%clk 0:02:20.9]} 15... Qa5 {[%clk 0:02:56.2]} 16. Rac1 {[%clk 0:01:54.9]}
16... Rfd8 {[%clk 0:02:56.2]} 17. Bb1 {[%clk 0:01:48.1]} 17... Rac8 {[%clk
0:02:50.7]} 18. Qh5 {[%clk 0:01:36.4]} 18... g6 {[%clk 0:02:48.1]} 19. Qh6
{[%clk 0:01:37.4]} 19... Qd5 {[%clk 0:02:39.3]} 20. Be4 {[%clk 0:01:28.6]} 20...
Qxa2 {[%clk 0:02:36.1]} 21. Bxc6 {[%clk 0:01:25.3]} 21... Rxc6 {[%clk 0:02:38]}
22. Re3 {[%clk 0:01:25.7]} 22... Qc2 {[%clk 0:02:25.3]} 23. Rf1 {[%clk
0:01:12.7]} 23... Rxc3 {[%clk 0:02:22.7]} 24. Bg5 {[%clk 0:00:56]} 24... Bxg5
{[%clk 0:02:06.6]} 25. Qxg5 {[%clk 0:00:57.1]} 25... Rdc8 {[%clk 0:02:07.8]} 26.
h4 {[%clk 0:00:49.7]} 26... Qf5 {[%clk 0:01:55.5]} 27. Rxc3 {[%clk 0:00:40.3]}
27... Rxc3 {[%clk 0:01:54.5]} 28. Qd8+ {[%clk 0:00:40.9]} 28... Kg7 {[%clk
0:01:55.5]} 29. Qd4 {[%clk 0:00:41.9]} 29... Rd3 {[%clk 0:01:53.5]} 30. Qxa7
{[%clk 0:00:41.5]} 30... Rb3 {[%clk 0:01:48.5]} 31. Qd4 {[%clk 0:00:38.6]} 31...
Rb1 {[%clk 0:01:48.2]} 32. Rxb1 {[%clk 0:00:37.7]} 32... Qxb1+ {[%clk
0:01:50.1]} 33. Kh2 {[%clk 0:00:39.2]} 33... Qf5 {[%clk 0:01:51.3]} 34. f3
{[%clk 0:00:17.6]} 34... h6 {[%clk 0:01:48.7]} 35. Kg1 {[%clk 0:00:18.1]} 35...
g5 {[%clk 0:01:48.5]} 36. hxg5 {[%clk 0:00:18.9]} 36... hxg5 {[%clk 0:01:50.4]}
37. Kf2 {[%clk 0:00:20.1]} 37... Qf4 {[%clk 0:01:50.8]} 38. Qd6 {[%clk
0:00:18.1]} 38... b5 {[%clk 0:01:47.9]} 39. Qc5 {[%clk 0:00:18.6]} 39... b4
{[%clk 0:01:44.8]} 40. g3 {[%clk 0:00:19.8]} 40... Qd2+ {[%clk 0:01:45.7]} 41.
Kf1 {[%clk 0:00:21.3]} 41... b3 {[%clk 0:01:37]} 42. Qe7 {[%clk 0:00:22.4]}
42... Qc1+ {[%clk 0:01:33.7]} 43. Kf2 {[%clk 0:00:20]} 43... Qb2+ {[%clk
0:01:35.3]} 44. Kf1 {[%clk 0:00:18.4]} 44... Qxe5 {[%clk 0:01:36.8]} 45. f4
{[%clk 0:00:19.4]} 45... gxf4 {[%clk 0:01:37.1]} 0-1

[Event "*** Titled Tuesday 3|2 Blitz"]
[Site "Chess.com"]
[Date "2016.05.03"]
[Round "1"]
[White "Alexander_Donchenko"]
[Black "hypert"]
[Result "1-0"]
[WhiteElo "2657"]
[BlackElo "2333"]
[TimeControl "180+2"]
[EndTime "11:07:43 PDT"]
[Termination "Alexander_Donchenko won by resignation"]

1. d4 {[%clk 0:03:01.3]} 1... Nf6 {[%clk 0:02:39.7]} 2. c4 {[%clk 0:03:02.2]}
2... e6 {[%clk 0:02:40]} 3. g3 {[%clk 0:03:03.3]} 3... d5 {[%clk 0:02:37.1]} 4.
Bg2 {[%clk 0:03:04.6]} 4... Be7 {[%clk 0:02:32.7]} 5. Nf3 {[%clk 0:03:04.9]}
5... O-O {[%clk 0:02:30.9]} 6. O-O {[%clk 0:03:06.8]} 6... dxc4 {[%clk
0:02:28.9]} 7. Qc2 {[%clk 0:03:08.2]} 7... a6 {[%clk 0:02:27.7]} 8. a4 {[%clk
0:03:09.8]} 8... Bd7 {[%clk 0:02:20.9]} 9. Qxc4 {[%clk 0:03:10.1]} 9... Bc6
{[%clk 0:02:21.3]} 10. Bf4 {[%clk 0:03:11.1]} 10... a5 {[%clk 0:02:16.1]} 11.
Nc3 {[%clk 0:03:12.2]} 11... Na6 {[%clk 0:02:13.6]} 12. Rac1 {[%clk 0:03:13.7]}
12... h6 {[%clk 0:02:11.1]} 13. Rfd1 {[%clk 0:03:13.1]} 13... Bb4 {[%clk
0:02:07.3]} 14. Qd3 {[%clk 0:02:59.8]} 14... Nd5 {[%clk 0:01:48.9]} 15. Nxd5
{[%clk 0:02:44.6]} 15... exd5 {[%clk 0:01:46.4]} 16. b3 {[%clk 0:02:41]} 16...
Ba3 {[%clk 0:01:34.7]} 17. Rb1 {[%clk 0:02:39.1]} 17... Bd6 {[%clk 0:01:34.4]}
18. Ne5 {[%clk 0:02:35.2]} 18... Be8 {[%clk 0:01:30.4]} 19. Bxd5 {[%clk
0:02:22.1]} 19... Nb4 {[%clk 0:01:26.1]} 20. Qc4 {[%clk 0:02:13.4]} 20... c6
{[%clk 0:01:04.5]} 21. Bg2 {[%clk 0:02:06.7]} 21... Rc8 {[%clk 0:00:49.2]} 22.
Bd2 {[%clk 0:01:40.6]} 22... b5 {[%clk 0:00:45.2]} 23. Qc3 {[%clk 0:01:41.6]}
23... Nd5 {[%clk 0:00:43.5]} 24. Qf3 {[%clk 0:01:31.5]} 24... Bb4 {[%clk
0:00:27.6]} 25. axb5 {[%clk 0:01:27.2]} 25... Bxd2 {[%clk 0:00:22.2]} 26. Rxd2
{[%clk 0:01:29.1]} 26... Qg5 {[%clk 0:00:21.3]} 27. e3 {[%clk 0:01:25.8]} 27...
Nb4 {[%clk 0:00:21.7]} 28. h4 {[%clk 0:01:22.5]} 28... Qe7 {[%clk 0:00:20.4]}
29. Rc1 {[%clk 0:01:18.1]} 29... f6 {[%clk 0:00:06.9]} 30. Nxc6 {[%clk
0:01:17.3]} 30... Nxc6 {[%clk 0:00:08]} 31. bxc6 {[%clk 0:01:19.2]} 31... Bf7
{[%clk 0:00:09.2]} 32. d5 {[%clk 0:01:19.4]} 32... Qd6 {[%clk 0:00:10.7]} 33.
Qf4 {[%clk 0:01:16.8]} 33... Rfd8 {[%clk 0:00:11.2]} 34. Qxd6 {[%clk 0:01:16.2]}
34... Rxd6 {[%clk 0:00:13.1]} 35. Rc5 {[%clk 0:01:16.2]} 1-0

[Event "*** Titled Tuesday 3|2 Blitz"]
[Site "Chess.com"]
[Date "2016.05.03"]
[Round "1"]
[White "PowerThinking2650"]
[Black "Boryboy"]
[Result "0-1"]
[WhiteElo "2146"]
[BlackElo "2499"]
[TimeControl "180+2"]
[EndTime "11:07:44 PDT"]
[Termination "Boryboy won by resignation"]

1. e4 {[%clk 0:03:00.1]} 1... e6 {[%clk 0:03:00.6]} 2. d4 {[%clk 0:02:58.7]}
2... d5 {[%clk 0:03:01.3]} 3. Nd2 {[%clk 0:02:59]} 3... Nf6 {[%clk 0:02:46.9]}
4. e5 {[%clk 0:02:59.9]} 4... Ne4 {[%clk 0:02:45.1]} 5. Bd3 {[%clk 0:02:44.9]}
5... Nxd2 {[%clk 0:02:45.8]} 6. Bxd2 {[%clk 0:02:45.3]} 6... c5 {[%clk
0:02:47.4]} 7. c3 {[%clk 0:02:46.2]} 7... Qb6 {[%clk 0:02:46.3]} 8. Ne2 {[%clk
0:02:04.6]} 8... Qxb2 {[%clk 0:02:36.6]} 9. O-O {[%clk 0:01:59.6]} 9... Qb6
{[%clk 0:02:33.4]} 10. f4 {[%clk 0:01:58.1]} 10... Nc6 {[%clk 0:02:31]} 11. Rb1
{[%clk 0:01:54.5]} 11... Qc7 {[%clk 0:02:24.3]} 12. g4 {[%clk 0:01:37.4]} 12...
h5 {[%clk 0:02:21.7]} 13. h3 {[%clk 0:01:11.1]} 13... hxg4 {[%clk 0:02:13.2]}
14. hxg4 {[%clk 0:01:12]} 14... Bd7 {[%clk 0:02:12.4]} 15. Kg2 {[%clk
0:01:05.6]} 15... O-O-O {[%clk 0:02:12.8]} 16. Qa4 {[%clk 0:00:51.5]} 16... Nxe5
{[%clk 0:02:08.6]} 17. Bb5 {[%clk 0:00:24.8]} 17... Bxb5 {[%clk 0:02:09.8]} 18.
Rxb5 {[%clk 0:00:25.1]} 18... Nc4 {[%clk 0:02:11.4]} 19. Rfb1 {[%clk 0:00:23.1]}
19... b6 {[%clk 0:02:08.2]} 20. Be1 {[%clk 0:00:21.5]} 20... Bd6 {[%clk
0:01:46.6]} 21. Bg3 {[%clk 0:00:22.1]} 21... g5 {[%clk 0:01:40.3]} 22. dxc5
{[%clk 0:00:23.1]} 22... Bxc5 {[%clk 0:01:34.5]} 23. f5 {[%clk 0:00:23]} 23...
Bd6 {[%clk 0:01:33.6]} 24. fxe6 {[%clk 0:00:21.3]} 24... fxe6 {[%clk 0:01:30.5]}
25. Qa6+ {[%clk 0:00:20.9]} 25... Kd7 {[%clk 0:01:25.9]} 26. Qa4 {[%clk
0:00:19.5]} 26... Ke7 {[%clk 0:01:27.2]} 27. Re1 {[%clk 0:00:16.4]} 27... Ne3+
{[%clk 0:01:05.6]} 28. Kf3 {[%clk 0:00:16.9]} 28... Bxg3 {[%clk 0:01:03.3]} 29.
Nxg3 {[%clk 0:00:16]} 29... Rdf8+ {[%clk 0:00:59.8]} 30. Nf5+ {[%clk 0:00:15.7]}
30... Nxf5 {[%clk 0:00:58.4]} 31. gxf5 {[%clk 0:00:16.1]} 31... Rxf5+ {[%clk
0:00:58.9]} 32. Ke2 {[%clk 0:00:16.9]} 32... Re5+ {[%clk 0:00:52.2]} 33. Kd1
{[%clk 0:00:15.9]} 33... Rxe1+ {[%clk 0:00:53.8]} 34. Kxe1 {[%clk 0:00:17.1]}
34... Qg3+ {[%clk 0:00:55.2]} 0-1

[Event "*** Titled Tuesday 3|2 Blitz"]
[Site "Chess.com"]
[Date "2016.05.03"]
[Round "1"]
[White "MinhGTrAn"]
[Black "oggy1984"]
[Result "1-0"]
[WhiteElo "2624"]
[BlackElo "2309"]
[TimeControl "180+2"]
[EndTime "11:07:48 PDT"]
[Termination "MinhGTrAn won by resignation"]

1. d4 {[%clk 0:02:58]} 1... Nf6 {[%clk 0:02:49.7]} 2. c4 {[%clk 0:02:58.3]} 2...
g6 {[%clk 0:02:49.2]} 3. Nc3 {[%clk 0:02:56.4]} 3... Bg7 {[%clk 0:02:49.2]} 4.
e4 {[%clk 0:02:56]} 4... d6 {[%clk 0:02:49.5]} 5. Bd3 {[%clk 0:02:57]} 5... O-O
{[%clk 0:02:50.5]} 6. Nge2 {[%clk 0:02:57.9]} 6... c5 {[%clk 0:02:50.4]} 7. d5
{[%clk 0:02:52]} 7... a6 {[%clk 0:02:49.7]} 8. O-O {[%clk 0:02:51.9]} 8... b5
{[%clk 0:02:47.8]} 9. cxb5 {[%clk 0:02:52.3]} 9... Nbd7 {[%clk 0:02:48.2]} 10.
a4 {[%clk 0:02:48.8]} 10... Ne5 {[%clk 0:02:42.1]} 11. Bc2 {[%clk 0:02:49.9]}
11... axb5 {[%clk 0:02:40.2]} 12. Nxb5 {[%clk 0:02:51.8]} 12... Ba6 {[%clk
0:02:40.3]} 13. Nec3 {[%clk 0:02:49.5]} 13... Qb6 {[%clk 0:02:31.5]} 14. h3
{[%clk 0:02:44.4]} 14... Rfb8 {[%clk 0:02:22.9]} 15. Bg5 {[%clk 0:02:37.8]}
15... h6 {[%clk 0:02:06.4]} 16. Bh4 {[%clk 0:02:26.8]} 16... Nc4 {[%clk
0:02:00.9]} 17. b3 {[%clk 0:02:24]} 17... Ne5 {[%clk 0:01:57.9]} 18. f4 {[%clk
0:02:19.7]} 18... Ned7 {[%clk 0:01:54.6]} 19. Kh2 {[%clk 0:02:18.1]} 19... Bxb5
{[%clk 0:01:30.4]} 20. Nxb5 {[%clk 0:02:16.5]} 20... c4 {[%clk 0:01:12.7]} 21.
bxc4 {[%clk 0:02:09.1]} 21... Nc5 {[%clk 0:01:12.2]} 22. Qe2 {[%clk 0:01:59.4]}
22... g5 {[%clk 0:00:41.8]} 23. fxg5 {[%clk 0:01:57.8]} 23... hxg5 {[%clk
0:00:43.7]} 24. Bxg5 {[%clk 0:01:56.4]} 24... Ncd7 {[%clk 0:00:34.3]} 25. Ra3
{[%clk 0:01:53.4]} 25... Ne5 {[%clk 0:00:34.3]} 26. Rg3 {[%clk 0:01:46]} 26...
Ng6 {[%clk 0:00:34.3]} 27. e5 {[%clk 0:01:44]} 27... dxe5 {[%clk 0:00:34]} 28.
Bxg6 {[%clk 0:01:32.5]} 28... fxg6 {[%clk 0:00:34.2]} 29. Bxf6 {[%clk
0:01:32.2]} 29... exf6 {[%clk 0:00:30.1]} 30. Rxg6 {[%clk 0:01:32.9]} 30... Rxa4
{[%clk 0:00:21.9]} 31. Qg4 {[%clk 0:01:26.7]} 31... Rb7 {[%clk 0:00:11.6]} 32.
Rfxf6 {[%clk 0:01:25.8]} 32... Qe3 {[%clk 0:00:10.2]} 33. Rxg7+ {[%clk
0:01:16.3]} 33... Rxg7 {[%clk 0:00:09.8]} 34. Qc8+ {[%clk 0:01:17.6]} 34... Kh7
{[%clk 0:00:10.3]} 35. Qf5+ {[%clk 0:01:19.2]} 1-0

[Event "*** Titled Tuesday 3|2 Blitz"]
[Site "Chess.com"]
[Date "2016.05.03"]
[Round "1"]
[White "Gevorg_Harutjunyan"]
[Black "kikydu96"]
[Result "1-0"]
[WhiteElo "2585"]
[BlackElo "2284"]
[TimeControl "180+2"]
[EndTime "11:07:54 PDT"]
[Termination "Gevorg_Harutjunyan won by resignation"]

1. e4 {[%clk 0:03:01.9]} 1... e5 {[%clk 0:03:00.3]} 2. Nf3 {[%clk 0:03:02.6]}
2... Nc6 {[%clk 0:03:00.9]} 3. d4 {[%clk 0:03:03.3]} 3... exd4 {[%clk
0:03:01.1]} 4. Nxd4 {[%clk 0:03:05.2]} 4... Nf6 {[%clk 0:03:02]} 5. Nxc6 {[%clk
0:03:05.5]} 5... bxc6 {[%clk 0:03:02]} 6. e5 {[%clk 0:03:06.4]} 6... Qe7 {[%clk
0:03:03.3]} 7. Qe2 {[%clk 0:03:07.7]} 7... Nd5 {[%clk 0:03:04]} 8. c4 {[%clk
0:03:08.8]} 8... Ba6 {[%clk 0:03:03.4]} 9. b3 {[%clk 0:03:09.3]} 9... g6 {[%clk
0:03:03.5]} 10. Bb2 {[%clk 0:03:08]} 10... Bg7 {[%clk 0:03:04.7]} 11. Nd2 {[%clk
0:03:07]} 11... O-O {[%clk 0:03:05]} 12. O-O-O {[%clk 0:03:00.6]} 12... Rfe8
{[%clk 0:02:57.1]} 13. Nf3 {[%clk 0:02:55.4]} 13... d6 {[%clk 0:02:44.7]} 14.
Qd2 {[%clk 0:02:48.7]} 14... Nb6 {[%clk 0:02:21.1]} 15. exd6 {[%clk 0:02:46.1]}
15... Bxb2+ {[%clk 0:02:20.7]} 16. Kxb2 {[%clk 0:02:46.7]} 16... cxd6 {[%clk
0:01:40.5]} 17. Qxd6 {[%clk 0:02:46.5]} 17... Qxd6 {[%clk 0:01:42]} 18. Rxd6
{[%clk 0:02:46.8]} 18... c5 {[%clk 0:01:43.9]} 19. Bd3 {[%clk 0:02:30.3]} 19...
Bb7 {[%clk 0:01:41.7]} 20. Kc3 {[%clk 0:02:18.7]} 20... Rad8 {[%clk 0:01:29.8]}
21. Rxd8 {[%clk 0:02:18]} 21... Rxd8 {[%clk 0:01:31.7]} 22. Re1 {[%clk
0:02:15.7]} 22... Kf8 {[%clk 0:01:33.3]} 23. Be4 {[%clk 0:02:12.9]} 23... Bxe4
{[%clk 0:01:30]} 24. Rxe4 {[%clk 0:02:14.8]} 24... Rd1 {[%clk 0:01:31.6]} 25.
Re1 {[%clk 0:02:11.4]} 25... Rd6 {[%clk 0:01:29.1]} 26. Re5 {[%clk 0:01:57]}
26... Nd7 {[%clk 0:01:23.2]} 27. Rd5 {[%clk 0:01:57]} 27... Rxd5 {[%clk
0:01:24.3]} 28. cxd5 {[%clk 0:01:58.9]} 28... Ke7 {[%clk 0:01:26]} 29. Nd2
{[%clk 0:01:51.9]} 29... Kd6 {[%clk 0:01:25.9]} 30. Kc4 {[%clk 0:01:48.5]} 30...
Ne5+ {[%clk 0:01:22.8]} 31. Kb5 {[%clk 0:01:48.8]} 31... Kxd5 {[%clk 0:01:24.1]}
32. Ka6 {[%clk 0:01:48]} 32... Nc6 {[%clk 0:01:22.4]} 33. Kb7 {[%clk 0:01:46.2]}
33... a5 {[%clk 0:01:12.2]} 34. Nc4 {[%clk 0:01:41.6]} 34... Nb4 {[%clk
0:01:08.2]} 35. a4 {[%clk 0:01:38.5]} 35... Nd3 {[%clk 0:01:03.4]} 36. Nxa5
{[%clk 0:01:34.8]} 36... Nxf2 {[%clk 0:01:03.4]} 37. Nc4 {[%clk 0:01:34.2]}
37... Nd3 {[%clk 0:00:35.3]} 38. a5 {[%clk 0:01:34.9]} 38... Nb4 {[%clk
0:00:35.3]} 39. a6 {[%clk 0:01:34]} 39... Nc6 {[%clk 0:00:31.8]} 40. Kc7 {[%clk
0:01:24.2]} 40... Na7 {[%clk 0:00:29.4]} 41. Kb6 {[%clk 0:01:18.9]} 41... Nc8+
{[%clk 0:00:26.2]} 42. Kb7 {[%clk 0:01:18]} 1-0